bitfinex-derivatives/quotes_SOLF0:USTF0_20241024
["timestamp","ask_amount","ask_price","bid_price","bid_amount"]
[1729780099881,2.8568,175.17,175.06,2.383]
[1729780100079,2.8568,175.17,175.06,3.48271]
[1729780100274,2.8568,175.17,175.09,2.858]
[1729780100483,21.93207341,175.18,175.06,3.48271]
[1729780101177,2.857,175.16,175.06,3.48271]
[1729780101584,21.93207341,175.18,175.11,2.8576]
[1729780101784,21.93207341,175.18,175.11,3.95731]
[1729780102074,2.8568,175.17,175.11,1.09971]
[1729780102477,23.18407341,175.21,175.11,1.09971]
[1729780102677,1.252,175.21,175.11,1.09971]
[1729780103385,4.1081,175.21,175.11,1.09971]
[1729780103676,2.5048,175.22,175.11,1.09971]
[1729780103880,1.2744,175.22,175.11,1.09971]
[1729780104075,1.2744,175.22,175.16,2.8568]
[1729780104381,2.8561,175.21,175.11,1.09971]
[1729780104775,1.2744,175.22,175.17,2.8566]
[1729780104976,2.8562,175.21,175.17,2.8566]
[1729780105174,1.2744,175.22,175.16,1.09971]
[1729780105379,2.8564,175.2,175.15,1.09971]
[1729780106179,21.93207341,175.2,175.07,21.93207341]
[1729780106380,2.8567,175.18,175.07,1.09984]
[1729780106685,2.8567,175.18,175.07,1.1421]
[1729780106977,2.8567,175.18,175.07,1.09971]
[1729780107176,2.8567,175.18,175.14,2.8571]
[1729780107480,1.2744,175.22,175.1,21.93207341]
[1729780107884,1.2744,175.22,175.1,23.03178341]
[1729780108476,4.1304,175.22,175.18,2.8564]
[1729780108983,21.93207341,175.26,175.16,1.09971]
[1729780109577,2.8556,175.25,175.19,2.8564]
[1729780109780,21.93207341,175.26,175.16,1.09971]
[1729780110584,2.8557,175.24,175.2,2.8562]
[1729780111376,2.8551,175.27,175.23,2.8557]
[1729780111777,21.93207341,175.28,175.23,2.8557]
[1729780111971,24.78717341,175.28,175.23,2.8557]
[1729780112178,1.1926,175.3,175.22,1.09971]
[1729780112685,4.0473,175.3,175.22,1.09971]
[1729780112981,21.93207341,175.29,175.22,1.09971]
[1729780113183,21.93207341,175.26,175.2,2.8561]
[1729780113577,2.8555,175.25,175.19,1.14171]
[1729780113983,21.93207341,175.26,175.19,1.14171]
[1729780114585,2.8555,175.25,175.21,2.856]
[1729780114788,2.8555,175.25,175.19,1.14171]
[1729780114789,21.93207341,175.26,175.19,1.14171]
[1729780115090,24.78747341,175.26,175.21,2.8561]
[1729780115788,21.93207341,175.26,175.2,1.14171]
[1729780116091,21.93207341,175.26,175.19,2.8563]
[1729780116783,21.93207341,175.26,175.19,1.09981]
[1729780117174,2.8554,175.25,175.19,1.09981]
[1729780117886,2.8554,175.25,175.21,2.856]
[1729780118082,21.93207341,175.26,175.21,2.856]
[1729780118281,2.8556,175.24,175.21,2.856]
[1729780118886,2.8556,175.25,175.2,3.95604]
[1729780119075,21.93207341,175.26,175.2,3.95604]
[1729780119584,21.93207341,175.26,175.2,1.09984]
[1729780120081,21.93207341,175.24,175.17,1.09984]
[1729780120286,21.93207341,175.24,175.14,3.53644]
[1729780120587,2.80532465,175.28,175.13,1.14184]
[1729780120588,21.93207341,175.21,175.13,1.14184]
[1729780120783,21.93207341,175.21,175.14,2.8572]
[1729780121084,2.8569,175.17,175.13,1.14204]
[1729780121285,3.599,175.2,175.14,2.8571]
[1729780121490,3.599,175.2,175.08,3.50805]
[1729780121682,2.8566,175.18,175.08,3.50805]
[1729780121888,3.599,175.2,175.12,2.8575]
[1729780122095,21.93207341,175.18,175.12,2.8575]
[1729780122386,21.93207341,175.18,175.05,21.93207341]
[1729780122387,21.93207341,175.18,175.11,2.8577]
[1729780122981,2.8572,175.15,175.11,2.8577]
[1729780123179,21.93207341,175.18,175.11,2.8577]
[1729780123990,2.857,175.16,175.12,2.8575]
[1729780124391,2.8571,175.15,175.12,3.95715]
[1729780126182,3.599,175.2,175.12,1.09965]
[1729780126694,2.8566,175.18,175.15,2.8569]
[1729780127496,2.8565,175.19,175.16,2.8569]
[1729780127995,2.8565,175.19,175.16,3.95655]
[1729780128699,1.2242,175.2,175.16,1.09965]
[1729780128891,2.8561,175.21,175.18,2.8565]
[1729780129290,23.09267341,175.26,175.16,1.09965]
[1729780129491,2.8559,175.22,175.16,1.09965]
[1729780129992,2.8559,175.22,175.19,2.8563]
[1729780130593,2.8559,175.22,175.19,3.95595]
[1729780130894,2.8555,175.25,175.19,1.09965]
[1729780131284,1.1606,175.26,175.19,1.09965]
[1729780132289,2.8556,175.24,175.21,2.856]
[1729780132488,1.1606,175.26,175.19,1.09965]
[1729780132696,23.09267341,175.26,175.13,21.93207341]
[1729780132890,2.856,175.22,175.19,2.8563]
[1729780133094,23.09267341,175.26,175.13,23.03172341]
[1729780133598,2.8558,175.23,175.2,2.8562]
[1729780133795,2.8558,175.23,175.13,23.03172341]
[1729780133992,2.8558,175.23,175.19,1.09981]
[1729780134197,2.8558,175.23,175.13,23.03188341]
[1729780135090,2.8558,175.23,175.2,2.8562]
[1729780135690,2.856,175.22,175.2,2.8562]
[1729780136497,13.71226084,175.25,175.14,13.71226084]
[1729780136696,13.71226084,175.25,175.14,14.81207084]
[1729780136901,1.1606,175.26,175.16,13.71226084]
[1729780137299,2.8556,175.25,175.22,2.8558]
[1729780138104,2.8556,175.25,175.22,3.95561]
[1729780138310,2.8556,175.25,175.23,2.8558]
[1729780138499,2.8556,175.25,175.22,1.09981]
[1729780139005,1.1606,175.26,175.21,1.09981]
[1729780139197,2.8557,175.24,175.21,1.09981]
[1729780139806,2.8557,175.24,175.22,2.8559]
[1729780140501,2.8555,175.25,175.22,2.8559]
[1729780141000,1.1606,175.26,175.24,2.8555]
[1729780141001,2.8553,175.26,175.24,2.8555]
[1729780141195,2.8553,175.26,175.22,1.09981]
[1729780141598,2.8556,175.25,175.17,1.211]
[1729780141802,13.71226084,175.27,175.16,13.71226084]
[1729780142005,13.71226084,175.29,175.23,2.8557]
[1729780142209,13.71226084,175.29,175.16,14.85391084]
[1729780142397,13.71226084,175.26,175.16,1.14165]
[1729780142602,2.8557,175.24,175.16,1.14165]
[1729780143313,2.8555,175.25,175.16,14.85391084]
[1729780143810,13.71226084,175.26,175.22,2.8558]
[1729780144012,2.8556,175.24,175.22,2.8558]
[1729780144913,13.71226084,175.26,175.22,2.8558]
[1729780145102,2.8555,175.25,175.22,2.8558]
[1729780146915,13.71226084,175.29,175.21,1.14165]
[1729780147214,13.71226084,175.31,175.21,1.14165]
[1729780147413,2.8549,175.29,175.26,2.8552]
[1729780147611,13.71226084,175.31,175.25,1.14165]
[1729780147910,2.8544,175.32,175.29,2.8546]
[1729780148110,3.688,175.33,175.27,1.14165]
[1729780148308,3.688,175.33,175.23,13.71226084]
[1729780148504,2.8545,175.31,175.26,2.8553]
[1729780148711,3.688,175.33,175.23,14.85391084]
[1729780149208,3.688,175.33,175.23,1.14165]
[1729780149409,13.71226084,175.31,175.23,1.14165]
[1729780149617,13.71226084,175.31,175.25,2.8553]
[1729780149618,2.8551,175.28,175.25,2.8553]
[1729780150012,13.71226084,175.29,175.2,1.2716]
[1729780150335,2.8548,175.29,175.26,2.8552]
[1729780150817,13.71226084,175.31,175.26,3.95501]
[1729780151019,2.8548,175.29,175.26,3.95501]
[1729780151905,2.855,175.28,175.26,3.95501]
[1729780152409,13.71226084,175.31,175.26,1.09981]
[1729780152605,3.688,175.33,175.2,1.2716]
[1729780152606,13.71226084,175.29,175.2,1.2716]
[1729780152805,13.71226084,175.29,175.2,1.09981]
[1729780153217,13.71226084,175.25,175.2,1.09981]
[1729780153410,13.71226084,175.25,175.18,1.14168]
[1729780153611,2.8561,175.21,175.18,2.8565]
[1729780153819,2.8561,175.21,175.18,3.95631]
[1729780154512,13.71226084,175.24,175.18,1.09981]
[1729780154718,13.71226084,175.26,175.21,2.856]
[1729780154919,13.71226084,175.26,175.18,1.09981]
[1729780156014,13.71226084,175.24,175.18,1.09981]
[1729780156214,13.71226084,175.24,175.17,1.09981]
[1729780156415,13.71226084,175.24,175.18,2.8565]
[1729780156416,2.8559,175.22,175.18,2.8565]
[1729780156614,13.71226084,175.24,175.18,2.8565]
[1729780156816,13.71226084,175.22,175.17,1.14178]
[1729780157120,13.71226084,175.2,175.14,1.14178]
[1729780157319,13.71226084,175.2,175.13,1.14178]
[1729780157615,2.8567,175.18,175.15,2.857]
[1729780157820,13.71226084,175.2,175.13,1.09978]
[1729780158019,2.8566,175.18,175.14,2.8572]
[1729780158616,2.8566,175.18,175.14,3.95698]
[1729780158818,13.71226084,175.2,175.14,3.95698]
[1729780159015,2.8568,175.17,175.14,3.95698]
[1729780159316,2.8568,175.17,175.14,1.09978]
[1729780159518,13.71226084,175.2,175.15,2.8571]
[1729780159719,13.71226084,175.22,175.14,1.09978]
[1729780159918,13.71226084,175.22,175.18,2.8566]
[1729780160222,13.71226084,175.22,175.12,13.71226084]
[1729780160223,2.8562,175.21,175.17,1.09978]
[1729780160820,2.8562,175.21,175.18,2.8565]
[1729780161718,13.71226084,175.22,175.17,1.09978]
[1729780161923,2.8563,175.2,175.16,3.95658]
[1729780162325,2.8563,175.2,175.17,2.8567]
[1729780162920,13.71226084,175.18,175.01,4.2860782]
[1729780163225,13.71226084,175.18,174.78,33.50492957]
[1729780163226,1.28,175.17,174.95,1.1986]
[1729780163526,13.71226084,175.1,174.96,1.05035115]
[1729780163725,13.71226084,175.1,174.99,13.71226084]
[1729780163922,1.28,175.09,174.96,13.71226084]
[1729780164233,1.28,175.09,174.96,14.85495084]
[1729780164234,13.71226084,175.07,174.96,14.85495084]
[1729780164522,24.44596578,175.09,174.96,1.14269]
[1729780164727,21.96116578,175.06,174.96,1.14269]
[1729780164936,1.2627,175.08,174.96,1.14269]
[1729780165123,21.96116578,175.03,174.96,1.14269]
[1729780165327,21.96116578,175.03,174.95,1.14269]
[1729780165626,2.86,174.97,174.93,1.246]
[1729780165937,21.96116578,175.0,174.93,1.14269]
[1729780166137,21.96116578,175.0,174.92,1.14328]
[1729780166338,21.96116578,175.02,174.92,1.14328]
[1729780166640,21.96116578,175.02,174.92,1.10018]
[1729780167833,2.8598,174.99,174.93,24.82186578]
[1729780168142,23.22386578,175.08,174.93,23.22176578]
[1729780168332,23.22386578,175.08,174.93,24.32119578]
[1729780169339,2.859,175.03,174.93,24.32119578]
[1729780170236,23.22386578,175.08,174.93,24.32119578]
[1729780170436,23.22386578,175.08,174.98,2.8597]
[1729780171130,23.22386578,175.08,174.93,23.22176578]
[1729780171334,23.22386578,175.08,174.99,2.8596]
[1729780171840,2.8589,175.04,174.99,3.95903]
[1729780172635,2.8591,175.03,174.99,3.95903]
[1729780172834,21.96116578,175.04,174.93,1.2606]
[1729780173038,2.8593,175.02,174.93,2.36037]
[1729780173534,2.8593,175.02,174.97,2.8599]
[1729780173740,2.8593,175.02,174.93,1.2606]
[1729780173931,2.8593,175.02,174.93,2.36037]
[1729780174740,2.8595,175.01,174.93,2.36037]
[1729780175134,2.8595,175.01,174.97,2.8599]
[1729780175341,2.8595,175.01,174.97,3.95967]
[1729780175643,2.8595,175.0,174.97,3.95967]
[1729780177346,23.22386578,175.08,174.97,1.09977]
[1729780178241,2.859,175.04,175.0,2.8594]
[1729780178842,2.859,175.04,175.0,3.95917]
[1729780179545,2.8591,175.03,175.0,2.8594]
[1729780180541,1.2627,175.08,174.99,1.09977]
[1729780180736,2.4848,175.09,174.99,23.06093578]
[1729780181041,1.28,175.09,175.0,1.2732]
[1729780181241,4.1381,175.09,175.02,2.8591]
[1729780181444,4.1381,175.09,175.02,1.09977]
[1729780181842,4.1381,175.09,175.05,2.8586]
[1729780182046,2.8582,175.08,175.05,1.09977]
[1729780182350,2.8582,175.08,175.04,2.8587]
[1729780184456,2.8582,175.08,175.05,2.8587]
[1729780189462,1.28,175.09,174.96,2.86]
[1729780189463,13.71866278,175.06,174.96,2.86]
[1729780189752,13.71866278,175.03,174.95,1.2041]
[1729780190258,2.8593,175.02,174.99,2.8597]
[1729780191454,13.71866278,175.05,174.98,1.14305]
[1729780191657,14.90986278,175.07,174.98,1.14305]
[1729780191958,17.76836278,175.07,175.03,2.8589]
[1729780192358,1.1912,175.07,175.03,2.8589]
[1729780192560,2.8587,175.06,175.02,4.00215]
[1729780193753,2.8587,175.06,175.02,1.14305]
[1729780193954,2.8584,175.07,175.04,2.8587]
[1729780194666,1.1639,175.08,175.03,1.14305]
[1729780195365,1.1639,175.08,175.05,2.8586]
[1729780195366,2.8583,175.08,175.05,2.8586]
[1729780195554,2.8583,175.08,175.03,1.14305]
[1729780195754,1.28,175.09,175.03,1.14305]
[1729780195963,2.8583,175.08,175.05,2.8587]
[1729780196166,1.28,175.09,175.03,1.14305]
[1729780196664,2.8585,175.07,175.04,2.8587]
[1729780197353,1.28,175.09,175.03,1.14305]
[1729780197558,2.8589,175.05,175.02,2.8592]
[1729780198467,1.28,175.09,175.02,1.09987]
[1729780198759,1.28,175.09,174.95,23.16066447]
[1729780198760,1.28,175.09,175.01,2.8593]
[1729780199355,2.859,175.04,175.01,2.8593]
[1729780199561,21.95656447,175.07,175.0,3.95917]
[1729780200364,2.8591,175.03,175.01,2.8593]
[1729780200663,21.95656447,175.07,175.01,2.8593]
[1729780200864,2.859,175.03,175.01,2.8593]
[1729780201067,21.95656447,175.07,175.01,2.8593]
[1729780201365,2.8597,174.99,174.98,1.09977]
[1729780201552,21.95656447,175.05,174.92,1.2568]
[1729780201553,21.95656447,175.05,174.99,2.8596]
[1729780201758,21.95656447,175.05,174.93,2.40375]
[1729780201963,21.95656447,175.07,174.93,2.36037]
[1729780202265,21.95656447,175.07,175.02,2.8591]
[1729780203062,21.95656447,175.07,175.01,2.8593]
[1729780204264,2.859,175.03,175.01,2.8593]
[1729780204863,2.859,175.03,175.0,1.09987]
[1729780205063,2.8595,175.01,174.93,1.2606]
[1729780205265,2.8595,175.01,174.93,2.36047]
[1729780205466,2.8592,175.02,174.97,2.86]
[1729780205670,2.8592,175.02,174.97,1.09987]
[1729780206067,2.8596,175.0,174.97,3.95977]
[1729780206266,21.95656447,175.04,174.93,1.2606]
[1729780206464,21.95656447,174.97,174.93,1.09971]
[1729780206671,21.95656447,174.97,174.84,5.7242]
[1729780206672,2.8606,174.94,174.84,8.2098]
[1729780207178,21.95656447,175.0,174.86,21.95656447]
[1729780207179,2.8599,174.98,174.86,21.95656447]
[1729780207363,2.8599,174.98,174.84,9.35308]
[1729780207364,24.30386447,175.03,174.89,21.95656447]
[1729780207559,24.30386447,175.03,174.89,23.05615447]
[1729780207767,2.3473,175.03,174.91,21.95656447]
[1729780208062,2.3473,175.03,174.92,2.5395]
[1729780208268,5.2065,175.03,174.99,2.8596]
[1729780208467,5.7142,175.16,174.92,5.44584196]
[1729780208665,5.7142,175.16,174.92,3.63909]
[1729780208666,3.646,175.09,174.92,3.63909]
[1729780208870,2.8589,175.04,175.01,2.8593]
[1729780209270,3.646,175.09,175.0,1.09959]
[1729780209463,3.646,175.09,174.94,21.95656447]
[1729780209671,3.646,175.09,174.95,1.231]
[1729780209868,3.646,175.09,175.05,2.8586]
[1729780209869,5.319,175.09,175.05,2.8586]
[1729780210170,2.4608,175.09,175.05,2.8586]
[1729780210964,2.4608,175.09,175.04,1.09959]
[1729780210965,2.8583,175.08,175.04,3.95839]
[1729780211181,2.92776891,175.13,175.04,1.09959]
[1729780211369,1.1852,175.15,175.04,1.09959]
[1729780211678,2.4582,175.21,175.06,21.95656447]
[1729780211861,2.4582,175.21,175.06,23.05615447]
[1729780212064,2.8568,175.17,175.06,23.05615447]
[1729780212567,2.8568,175.17,175.12,2.8574]
[1729780212768,2.8566,175.18,175.06,21.95656447]
[1729780212971,2.8566,175.18,175.06,23.05630447]
[1729780213472,2.8568,175.17,175.12,2.8574]
[1729780213769,2.8568,175.17,175.06,23.05630447]
[1729780214072,5.25216715,175.21,175.06,23.05630447]
[1729780214073,1.2807,175.21,175.12,21.95656447]
[1729780214272,2.5685,175.26,175.15,21.95656447]
[1729780214579,21.95656447,175.3,175.18,21.95656447]
[1729780214875,24.85428255,175.3,175.15,21.95656447]
[1729780215169,21.95656447,175.27,175.17,2.8566]
[1729780215375,2.4536,175.26,175.12,21.95656447]
[1729780215577,2.8559,175.23,175.18,2.8564]
[1729780216073,2.8559,175.23,175.18,3.95614]
[1729780216666,2.8556,175.24,175.2,2.8562]
[1729780217073,2.4536,175.26,175.2,2.8562]
[1729780217262,2.4536,175.26,175.19,1.09974]
[1729780217468,1.2705,175.33,175.18,21.95656447]
[1729780217664,21.95656447,175.29,175.18,1.09974]
[1729780218173,2.8558,175.24,175.18,1.09974]
[1729780218565,2.856,175.22,175.18,1.09974]
[1729780218771,21.95656447,175.27,175.18,1.09974]
[1729780218968,1.264,175.26,175.18,1.09974]
[1729780219169,2.8559,175.23,175.18,2.8566]
[1729780219374,1.264,175.26,175.16,1.09974]
[1729780219578,21.95656447,175.24,175.16,1.09974]
[1729780219774,21.95656447,175.24,175.15,1.14187]
[1729780219972,21.95656447,175.24,175.13,2.4634]
[1729780220172,2.8557,175.24,175.19,2.8564]
[1729780220478,21.95656447,175.3,175.15,21.95656447]
[1729780220675,21.95656447,175.3,175.22,2.8559]
[1729780220676,2.8553,175.27,175.22,2.8559]
[1729780220876,21.95656447,175.3,175.16,1.2661]
[1729780221278,2.8553,175.26,175.22,2.8559]
[1729780221876,2.8553,175.26,175.22,3.95561]
[1729780222081,21.95656447,175.3,175.23,2.8557]
[1729780222275,1.2042,175.31,175.23,2.8557]
[1729780222475,1.2042,175.31,175.23,3.95541]
[1729780222982,2.8551,175.28,175.23,3.95541]
[1729780223377,2.8551,175.28,175.23,1.09971]
[1729780223577,2.8551,175.28,175.24,2.8556]
[1729780224285,2.8548,175.29,175.25,2.8553]
[1729780225785,2.855,175.28,175.24,3.95531]
[1729780225977,1.2042,175.31,175.24,3.95531]
[1729780226378,2.8548,175.29,175.24,3.95531]
[1729780226573,2.8548,175.29,175.24,1.09971]
[1729780226785,2.8548,175.29,175.25,2.8554]
[1729780227085,1.2042,175.31,175.18,21.95656447]
[1729780227290,1.2042,175.31,175.21,2.856]
[1729780227490,2.8554,175.26,175.18,21.95656447]
[1729780227679,2.8554,175.26,175.18,23.09804447]
[1729780228983,1.2788,175.32,175.24,2.8555]
[1729780229177,1.2788,175.32,175.21,1.09974]
[1729780229382,2.8549,175.29,175.21,1.09974]
[1729780229582,2.7947764,175.3,175.22,2.8558]
[1729780229790,1.2788,175.32,175.22,2.8558]
[1729780229986,2.8554,175.26,175.22,2.8558]
[1729780230188,24.87358951,175.3,175.19,1.09974]
[1729780230495,24.87358951,175.3,175.17,1.2485]
[1729780230496,2.8558,175.23,175.13,1.1829]
[1729780230699,21.95656447,175.27,175.19,2.8564]
[1729780230994,2.8557,175.24,175.14,21.95656447]
[1729780231196,24.74310004,175.3,175.14,21.95656447]
[1729780231594,21.95656447,175.27,175.14,23.09821447]
[1729780231802,21.95656447,175.27,175.14,1.14165]
[1729780232002,21.95656447,175.24,175.14,1.14165]
[1729780232300,2.5093,175.23,175.15,2.8569]
[1729780232700,2.5093,175.23,175.14,1.14165]
[1729780232895,2.5093,175.23,175.14,2.8571]
[1729780233096,2.8567,175.18,175.14,2.8571]
[1729780233291,2.5093,175.23,175.06,21.95656447]
[1729780233292,21.95656447,175.21,175.06,21.95656447]
[1729780233491,21.95656447,175.21,175.07,2.4386]
[1729780233697,1.2785,175.2,175.07,3.53834]
[1729780234202,1.2785,175.2,175.12,2.8574]
[1729780234396,2.857,175.16,175.12,3.95711]
[1729780234802,2.8565,175.19,175.16,2.8569]
[1729780235001,2.8565,175.19,175.12,1.09971]
[1729780235501,2.5093,175.23,175.15,2.857]
[1729780236702,2.5093,175.23,175.14,1.09971]
[1729780236903,2.5093,175.23,175.17,2.8566]
[1729780237496,2.5093,175.23,175.15,2.8569]
[1729780237906,2.8566,175.19,175.14,1.09971]
[1729780238202,2.5093,175.23,175.14,1.09971]
[1729780238397,2.8562,175.21,175.14,1.09971]
[1729780238698,1.2541,175.23,175.2,2.8562]
[1729780238904,4.11,175.23,175.17,1.09971]
[1729780239099,1.2541,175.23,175.17,1.09971]
[1729780239297,1.2541,175.23,175.16,3.95661]
[1729780239597,1.2541,175.23,175.16,1.09971]
[1729780239800,1.2541,175.23,175.17,2.8567]
[1729780240000,2.8564,175.2,175.16,1.09971]
[1729780240200,1.2541,175.23,175.14,1.09971]
[1729780240406,1.2541,175.23,175.13,2.8574]
[1729780240702,1.2541,175.23,175.09,21.95656447]
[1729780240703,2.8565,175.19,175.09,23.09853447]
[1729780241004,2.8565,175.19,175.09,23.05627447]
[1729780241704,2.8565,175.19,175.15,2.857]
[1729780242803,2.8565,175.19,175.14,1.09971]
[1729780243010,1.2541,175.23,175.14,1.09971]
[1729780243409,2.856,175.22,175.18,2.8564]
[1729780243602,1.2541,175.23,175.13,1.1933]
[1729780243804,1.2541,175.23,175.13,2.29301]
[1729780243999,2.8564,175.2,175.13,2.29301]
[1729780244306,1.2541,175.23,175.13,2.29301]
[1729780244307,1.2541,175.23,175.13,1.09971]
[1729780244697,1.2541,175.23,175.18,2.8565]
[1729780244698,2.8561,175.21,175.18,2.8565]
[1729780245995,4.11,175.23,175.19,2.8563]
[1729780246200,4.11,175.23,175.17,1.09971]
[1729780246201,2.8559,175.23,175.17,1.09971]
[1729780246407,1.1597,175.28,175.17,1.09971]
[1729780246619,2.8554,175.26,175.22,2.8558]
[1729780247113,1.1597,175.28,175.22,2.8558]
[1729780247410,2.8552,175.27,175.24,2.8556]
[1729780249009,1.1597,175.28,175.22,1.09971]
[1729780249201,1.1597,175.28,175.17,1.2787]
[1729780249402,1.1597,175.28,175.17,2.37841]
[1729780249607,2.8555,175.25,175.23,2.8557]
[1729780250015,1.1597,175.28,175.23,2.8557]
[1729780250312,2.8555,175.25,175.23,2.8557]
[1729780251324,1.1597,175.28,175.23,2.8557]
[1729780251514,2.8553,175.26,175.23,2.8557]
[1729780251911,2.8551,175.28,175.22,1.09978]
[1729780252114,21.95656447,175.3,175.22,1.09978]
[1729780252320,1.2752,175.31,175.22,1.09978]
[1729780252618,2.8549,175.29,175.25,2.8553]
[1729780252820,2.8549,175.29,175.22,1.09978]
[1729780253011,188.25124284,175.33,175.22,1.09978]
[1729780253414,21.95656447,175.3,175.22,1.09978]
[1729780253617,2.855,175.28,175.25,2.8554]
[1729780254111,188.25124284,175.33,175.25,2.8554]
[1729780254312,2.855,175.28,175.25,2.8554]
[1729780258615,13.70459745,175.32,175.23,1.09981]
[1729780258811,166.29467837,175.33,175.23,13.70459745]
[1729780259016,1.1906,175.34,175.26,13.70459745]
[1729780259219,1.1906,175.34,175.3,2.8545]
[1729780259220,2.8542,175.33,175.3,2.8545]
[1729780259718,1.1906,175.34,175.26,14.80440745]
[1729780259920,1.1906,175.34,175.26,1.09981]
[1729780260126,13.70459745,175.32,175.26,1.09981]
[1729780260323,2.8547,175.3,175.26,2.8552]
[1729780260525,2.8547,175.3,175.24,3.63315]
[1729780260826,13.70459745,175.28,175.17,1.2787]
[1729780261022,13.70459745,175.26,175.17,2.41992]
[1729780261415,13.70459745,175.26,175.19,2.8563]
[1729780261722,6.8986,175.34,175.17,14.98329745]
[1729780261723,13.70459745,175.28,175.17,14.98329745]
[1729780261917,13.70459745,175.3,175.17,16.12477745]
[1729780262221,23.11148934,175.34,175.2,21.92088934]
[1729780262425,23.11148934,175.34,175.21,1.2059]
[1729780262933,2.855,175.28,175.25,2.8554]
[1729780263121,21.92088934,175.32,175.22,1.267]
[1729780263528,2.8548,175.29,175.24,2.8556]
[1729780263721,2.89394144,175.31,175.22,1.09971]
[1729780264216,2.8554,175.26,175.22,3.95551]
[1729780264620,2.8554,175.26,175.22,1.09971]
[1729780264926,2.8554,175.26,175.23,2.8557]
[1729780265124,2.8554,175.26,175.23,3.95541]
[1729780265723,2.8547,175.3,175.24,2.8555]
[1729780265923,21.92088934,175.32,175.24,2.8555]
[1729780266124,21.92088934,175.32,175.23,1.09971]
[1729780266324,2.8551,175.27,175.23,1.09971]
[1729780266522,21.92088934,175.32,175.23,1.09971]
[1729780266923,2.8553,175.27,175.24,2.8555]
[1729780267329,2.8555,175.25,175.22,2.8558]
[1729780268022,21.92088934,175.29,175.21,1.09981]
[1729780268226,21.92088934,175.26,175.16,1.2572]
[1729780268424,21.92088934,175.26,175.16,2.39898]
[1729780268627,2.8556,175.25,175.19,2.8563]
[1729780268819,1.2506,175.28,175.16,23.17808934]
[1729780269022,1.2506,175.28,175.16,24.27804934]
[1729780269218,1.2653,175.3,175.16,24.27804934]
[1729780270331,2.8554,175.26,175.23,2.8557]
[1729780270625,2.8554,175.26,175.23,3.95566]
[1729780270933,2.8555,175.25,175.23,1.09996]
[1729780271126,2.8555,175.25,175.22,3.95586]
[1729780271320,1.2653,175.3,175.22,1.09996]
[1729780271826,1.2653,175.3,175.22,3.95576]
[1729780272225,1.2653,175.3,175.22,2.8558]
[1729780272422,1.2653,175.3,175.16,23.17808934]
[1729780272423,2.8554,175.26,175.23,2.8557]
[1729780272629,1.2519,175.33,175.18,21.92088934]
[1729780272833,1.2519,175.33,175.19,1.1895]
[1729780273019,1.2519,175.33,175.24,2.8555]
[1729780273020,2.8552,175.27,175.24,2.8555]
[1729780273635,1.2519,175.33,175.19,1.1895]
[1729780273833,1.1906,175.34,175.21,21.92088934]
[1729780274021,23.15398934,175.39,175.24,21.92088934]
[1729780274226,2.8543,175.33,175.3,2.8546]
[1729780275330,2.8539,175.35,175.32,2.8542]
[1729780275630,24.39878934,175.39,175.27,21.92088934]
[1729780275837,1.2448,175.39,175.28,1.2273]
[1729780276031,2.8534,175.38,175.3,21.92088934]
[1729780276225,1.1572,175.45,175.33,21.92088934]
[1729780276226,2.3722,175.45,175.33,21.92088934]
[1729780276423,2.8533,175.38,175.34,4.0928]
[1729780276627,21.92088934,175.44,175.31,1.2821]
[1729780276833,21.92088934,175.41,175.31,1.2821]
[1729780277037,2.8537,175.36,175.32,2.8543]
[1729780277236,21.92088934,175.41,175.31,1.2821]
[1729780277431,21.92088934,175.41,175.31,2.38188]
[1729780277735,2.8541,175.34,175.31,2.38188]
[1729780278136,2.8541,175.34,175.3,1.09978]
[1729780278829,21.92088934,175.39,175.3,1.09978]